bitfinex-derivatives/quotes_BTCF0:USTF0_20260119
["timestamp","ask_amount","ask_price","bid_price","bid_amount"]
[1768809878609,0.02459406,92808.0,92796.0,5.06e-05]
[1768809878810,0.00016164,92810.0,92796.0,5.06e-05]
[1768809879011,0.02459404,92809.0,92796.0,5.06e-05]
[1768809879210,0.02459404,92808.0,92796.0,5.06e-05]
[1768809879403,0.00016164,92810.0,92796.0,5.06e-05]
[1768809879605,0.02459271,92809.0,92796.0,5.06e-05]
[1768809879916,0.02459271,92808.0,92795.0,0.010782]
[1768809880107,0.00016164,92810.0,92795.0,0.010782]
[1768809880308,0.0245914,92809.0,92795.0,0.010782]
[1768809880502,0.0245914,92808.0,92795.0,0.010782]
[1768809880702,0.00016164,92810.0,92795.0,0.010782]
[1768809880903,0.02459139,92809.0,92795.0,0.010782]
[1768809881108,0.02459139,92808.0,92795.0,0.010782]
[1768809881299,0.03800547,92810.0,92792.0,0.010782]
[1768809881504,0.06243445,92809.0,92792.0,0.010782]
[1768809881808,0.02459062,92808.0,92792.0,0.010782]
[1768809882197,0.03784383,92807.0,92792.0,0.010782]
[1768809884913,0.03784383,92807.0,92795.0,0.010782]
[1768809888409,0.03784383,92807.0,92792.0,0.010782]
[1768809890423,0.03784383,92807.0,92759.0,0.010786]
[1768809890424,0.03784383,92801.0,92787.0,0.09704]
[1768809891709,0.010781,92805.0,92787.0,0.09738192]
[1768809891909,0.04862483,92805.0,92787.0,0.09738192]
[1768809892124,0.00982233,92799.0,92776.0,0.00034192]
[1768809892323,0.010781,92803.0,92789.0,0.010783]
[1768809892324,0.04766616,92803.0,92789.0,0.010783]
[1768809892622,0.05058007,92807.0,92789.0,0.010783]
[1768809892920,0.03979907,92805.0,92787.0,0.0002745]
[1768809893109,0.0245993,92804.0,92787.0,0.0002745]
[1768809893412,0.06439837,92804.0,92787.0,0.0002745]
[1768809893612,0.03979907,92804.0,92786.0,0.010783]
[1768809894208,0.049063,92804.0,92783.0,0.0110575]
[1768809894720,0.05058007,92803.0,92783.0,0.0110575]
[1768809894909,0.05058007,92803.0,92784.0,0.00053441]
[1768809895221,0.03979907,92803.0,92785.0,0.010783]
[1768809895427,0.03979907,92803.0,92785.0,0.01131741]
[1768809897024,0.03979907,92803.0,92789.0,0.010782]
[1768809897824,0.03979907,92803.0,92785.0,0.00053441]
[1768809897825,0.03979907,92803.0,92786.0,0.010783]
[1768809898324,0.049063,92803.0,92786.0,0.010783]
[1768809898724,0.049063,92803.0,92785.0,0.00053441]
[1768809899625,0.049063,92803.0,92783.0,0.010783]
[1768809900423,0.010781,92807.0,92788.0,0.00062632]
[1768809900624,0.02461077,92806.0,92788.0,0.00062632]
[1768809900820,0.02461077,92805.0,92788.0,0.00062632]
[1768809901025,0.049063,92803.0,92786.0,0.010783]
[1768809901226,0.03979907,92809.0,92794.0,0.010782]
[1768809901412,0.02461197,92808.0,92794.0,0.010782]
[1768809901611,0.03979907,92806.0,92791.0,0.010782]
[1768809901922,0.049063,92800.0,92785.0,0.009703]
[1768809902228,0.049063,92792.0,92781.0,0.107823]
[1768809902422,0.03979907,92792.0,92784.0,0.010783]
[1768809902619,0.049063,92798.0,92778.0,0.000546]
[1768809902816,0.049063,92798.0,92777.0,0.09704]
[1768809902817,0.09704,92803.0,92784.0,0.000546]
[1768809903018,0.13683907,92803.0,92784.0,0.000546]
[1768809903219,0.13683907,92803.0,92788.0,0.010783]
[1768809903420,0.03979907,92802.0,92788.0,0.010783]
[1768809903727,0.049063,92800.0,92784.0,0.010783]
[1768809905523,0.049063,92798.0,92784.0,0.010783]
[1768809905726,0.049063,92796.0,92784.0,0.010783]
[1768809906931,0.049063,92796.0,92780.0,0.010784]
[1768809907125,0.010781,92802.0,92780.0,0.010784]
[1768809907126,0.03979907,92794.0,92780.0,0.010784]
[1768809907320,0.09720164,92803.0,92778.0,0.09704]
[1768809907321,0.03979907,92790.0,92778.0,0.09704]
[1768809907524,0.03979907,92786.0,92778.0,0.09704]
[1768809907727,0.049063,92786.0,92778.0,0.09704]
[1768809908626,0.03979907,92786.0,92778.0,0.09704]
[1768809909732,0.049063,92792.0,92778.0,0.09704]
[1768809910031,0.03979907,92786.0,92766.0,0.00060883]
[1768809910232,0.03979907,92784.0,92768.0,0.010785]
[1768809910428,0.049063,92784.0,92771.0,0.010785]
[1768809911028,0.049063,92784.0,92772.0,0.010785]
[1768809911728,0.049063,92784.0,92767.0,0.09704]
[1768809912029,0.03979907,92774.0,92766.0,0.09704]
[1768809914334,0.03979907,92774.0,92764.0,0.01315661]
[1768809915540,0.03979907,92774.0,92764.0,0.00237161]
[1768809916224,0.03979907,92774.0,92765.0,0.010785]
[1768809916624,0.00016164,92779.0,92768.0,0.010785]
[1768809917140,0.00942557,92779.0,92768.0,0.010785]
[1768809919235,0.00942557,92779.0,92764.0,0.00237161]
[1768809919236,0.00942557,92779.0,92773.0,0.010784]
[1768809919437,0.00016164,92779.0,92773.0,0.010784]
[1768809920227,0.09704,92786.0,92773.0,0.010784]
[1768809922442,0.10630393,92786.0,92773.0,0.010784]
[1768809922641,0.10630393,92786.0,92770.0,0.00016164]
[1768809922941,0.10630393,92786.0,92775.0,0.010784]
[1768809925143,0.10630393,92786.0,92772.0,0.010785]
[1768809926448,0.00949523,92785.0,92772.0,0.010785]
[1768809926641,0.05247886,92785.0,92772.0,0.010785]
[1768809926941,0.00949523,92784.0,92772.0,0.010785]
[1768809928943,0.09704,92786.0,92774.0,0.010784]
[1768809931033,0.09704,92786.0,92770.0,0.00016164]
[1768809931034,0.00949523,92785.0,92771.0,0.010785]
[1768809931240,0.00949523,92784.0,92771.0,0.010785]
[1768809931844,0.05247886,92784.0,92770.0,0.00016164]
[1768809932045,0.00949523,92782.0,92770.0,0.00016164]
[1768809932238,0.05247886,92782.0,92770.0,0.00016164]
[1768809932444,0.00949523,92781.0,92770.0,0.00016164]
[1768809932740,0.00949523,92781.0,92764.0,0.00237161]
[1768809932741,0.00949523,92775.0,92764.0,0.09941161]
[1768809934645,0.04298363,92776.0,92764.0,0.09941161]
[1768809935643,0.05247886,92776.0,92764.0,0.00237161]
[1768809935837,0.00949523,92774.0,92764.0,0.00237161]
[1768809937437,0.00949523,92774.0,92760.0,0.107826]
[1768809937638,0.04298363,92775.0,92760.0,0.107826]
[1768809938148,0.00949523,92771.0,92760.0,0.09704]
[1768809938946,0.00949523,92771.0,92760.0,0.107826]
[1768809939441,0.00949523,92771.0,92756.0,0.010786]
[1768809939646,0.00949523,92771.0,92757.0,0.09704]
[1768809940449,0.00949523,92771.0,92758.0,0.010786]
[1768809941042,0.04298363,92772.0,92758.0,0.010786]
[1768809941242,0.05269795,92772.0,92758.0,0.010786]
[1768809941847,0.00971432,92771.0,92758.0,0.010786]
[1768809942751,0.00971432,92771.0,92757.0,0.09704]
[1768809943253,0.00971432,92771.0,92753.0,0.00010636]
[1768809943453,0.00971432,92771.0,92754.0,0.09704]
[1768809943754,0.00971432,92771.0,92758.0,0.010786]
[1768809945254,0.00971432,92771.0,92760.0,0.010786]
[1768809946055,0.04298363,92772.0,92761.0,0.010786]
[1768809947648,0.04298363,92772.0,92763.0,0.010786]
[1768809948056,0.00971432,92771.0,92763.0,0.010786]
[1768809948256,0.04298363,92772.0,92763.0,0.010786]
[1768809949050,0.04298363,92772.0,92760.0,0.15595341]
[1768809949756,0.04746577,92770.0,92754.0,0.09704]
[1768809949960,0.00971432,92770.0,92754.0,0.107827]
[1768809950255,0.00971432,92769.0,92754.0,0.107827]
[1768809950461,0.00971432,92769.0,92759.0,0.14516741]
[1768809950656,0.00971432,92765.0,92753.0,0.09714636]
[1768809950861,0.00971432,92764.0,92753.0,0.09714636]
[1768809951059,0.00971432,92760.0,92753.0,0.09714636]
[1768809951253,0.00971432,92764.0,92753.0,0.09714636]
[1768809951554,0.05718009,92764.0,92753.0,0.00010636]
[1768809951764,0.04746577,92751.0,92740.0,0.09704]
[1768809951955,0.04746577,92751.0,92740.0,0.24220741]
[1768809952150,0.00016164,92768.0,92745.0,0.04657667]
[1768809952356,0.02428744,92767.0,92750.0,0.14516741]
[1768809952555,0.02428744,92766.0,92750.0,0.14516741]
[1768809952764,0.00931248,92764.0,92750.0,0.010787]
[1768809952964,0.04848515,92765.0,92750.0,0.15595441]
[1768809953263,0.05779763,92765.0,92750.0,0.15595441]
[1768809953656,0.00931248,92765.0,92750.0,0.14516741]
[1768809954058,0.00931248,92759.0,92744.0,0.00237212]
[1768809954264,0.00931248,92764.0,92749.0,0.14516741]
[1768809954652,0.00931248,92764.0,92744.0,0.00237212]
[1768809954653,0.00931248,92760.0,92744.0,0.00237212]
[1768809955054,0.00931248,92758.0,92744.0,0.00237212]
[1768809955459,0.04848515,92760.0,92744.0,0.00237212]
[1768809955664,0.00931248,92758.0,92744.0,0.00237212]
[1768809956057,0.04848515,92759.0,92744.0,0.00237212]
[1768809956463,0.10639248,92764.0,92749.0,0.14516741]
[1768809956958,0.10639248,92764.0,92747.0,0.010787]
[1768809957160,0.05779763,92761.0,92747.0,0.010787]
[1768809957362,0.00931248,92760.0,92747.0,0.010787]
[1768809960466,0.04848515,92761.0,92747.0,0.010787]
[1768809961664,0.05779763,92761.0,92747.0,0.010787]
[1768809961866,0.00931248,92760.0,92747.0,0.010787]
[1768809962873,0.00931248,92760.0,92745.0,0.010788]
[1768809963170,0.00931248,92760.0,92748.0,0.010787]
[1768809963371,0.09708,92764.0,92754.0,0.010787]
[1768809963572,8.154e-05,92766.0,92755.0,0.010786]
[1768809963771,0.09708,92770.0,92755.0,0.010786]
[1768809964074,0.09708,92770.0,92758.0,0.14516741]
[1768809964272,0.09708,92770.0,92755.0,0.010786]
[1768809964273,0.02437287,92769.0,92755.0,0.010786]
[1768809964469,0.09708,92770.0,92755.0,0.010786]
[1768809964673,0.00931248,92768.0,92755.0,0.010786]
[1768809965266,0.10639248,92770.0,92755.0,0.010786]
[1768809965465,0.02437438,92769.0,92755.0,0.010786]
[1768809965666,0.02437438,92768.0,92755.0,0.010786]
[1768809965867,0.00931248,92769.0,92755.0,0.010786]
[1768809966068,0.02437436,92768.0,92755.0,0.010786]
[1768809966267,0.00931248,92769.0,92755.0,0.010786]
[1768809966475,0.02437574,92768.0,92759.0,0.15595341]
[1768809966677,0.09708,92770.0,92761.0,0.010786]
[1768809967574,0.09708,92770.0,92759.0,0.14516741]
[1768809968477,0.09708,92770.0,92763.0,0.010786]
[1768809968670,0.09708,92770.0,92760.0,0.010786]
[1768809969277,0.10639248,92770.0,92760.0,0.010786]
[1768809970180,0.09708,92770.0,92760.0,0.010786]
[1768809970879,0.09708,92770.0,92759.0,0.14516741]
[1768809970880,0.09708,92770.0,92752.0,0.04879986]
[1768809971078,0.09708,92770.0,92760.0,0.14516741]
[1768809971273,0.00931248,92775.0,92763.0,0.010786]
[1768809972574,0.00931248,92775.0,92765.0,0.010785]
[1768809972774,0.09708,92777.0,92765.0,0.14516741]
[1768809974477,0.0994511,92784.0,92773.0,0.010784]
[1768809974682,0.0994511,92784.0,92776.0,0.010784]
[1768809974978,0.0023711,92784.0,92776.0,0.010784]
[1768809975577,0.04848515,92792.0,92776.0,0.010784]
[1768809975876,0.09708,92793.0,92780.0,0.14516741]
[1768809976075,0.00931248,92799.0,92781.0,0.010783]
[1768809977676,0.09708,92801.0,92781.0,0.010783]
[1768809977677,0.09708,92801.0,92789.0,0.14516741]
[1768809977881,0.09708,92801.0,92790.0,0.010782]
[1768809978482,0.09708,92801.0,92789.0,0.14516741]
[1768809979180,0.09708,92801.0,92789.0,0.15595041]
[1768809979677,0.09708,92801.0,92789.0,0.010783]
[1768809979976,0.10639248,92801.0,92790.0,0.14516741]
[1768809980488,0.00931248,92801.0,92790.0,0.14516741]
[1768809982278,0.05779763,92801.0,92786.0,0.00016173]
[1768809982485,0.05779763,92801.0,92790.0,0.14516741]
[1768809983186,0.05779763,92801.0,92786.0,0.01094473]
[1768809983571,0.05779763,92801.0,92790.0,0.14516741]
[1768809984281,0.05779763,92801.0,92786.0,0.00016173]
[1768809984489,0.05779763,92801.0,92790.0,0.14516741]
[1768809984688,0.04848515,92801.0,92790.0,0.14516741]
[1768809984990,0.00915017,92800.0,92790.0,0.14516741]
[1768809985284,0.04922711,92794.0,92774.0,0.0514466]
[1768809985484,0.09708,92808.0,92780.0,0.14516741]
[1768809985485,0.00915017,92791.0,92780.0,0.14516741]
[1768809985684,0.00915017,92791.0,92780.0,0.24220741]
[1768809985879,0.04922711,92792.0,92780.0,0.24220741]
[1768809986084,0.00915017,92786.0,92772.0,0.09704]
[1768809987079,0.00915017,92790.0,92772.0,0.09704]
[1768809987489,0.00915017,92789.0,92772.0,0.09704]
[1768809987989,0.00915017,92787.0,92770.0,0.14516741]
[1768809988191,0.00915017,92786.0,92770.0,0.24220741]
[1768809988392,0.04922711,92787.0,92770.0,0.24220741]
[1768809988989,0.05837728,92787.0,92768.0,0.010785]
[1768809989194,0.05837728,92787.0,92770.0,0.14516741]
[1768809992193,0.05837728,92787.0,92771.0,0.010785]
[1768809992488,0.010782,92794.0,92775.0,0.00214907]
[1768809992795,0.09704,92797.0,92780.0,0.14516741]
[1768809992988,0.00915017,92796.0,92780.0,0.14516741]
[1768809993184,0.010782,92795.0,92780.0,0.14516741]
[1768809993797,0.010782,92792.0,92775.0,0.00214907]
[1768809994004,0.01993217,92792.0,92774.0,0.0514466]
[1768809994206,0.010782,92792.0,92780.0,0.14516741]
[1768809994606,0.00915017,92794.0,92780.0,0.14516741]
[1768809994805,0.01993217,92794.0,92780.0,0.14516741]
[1768809996004,0.09704,92797.0,92780.0,0.14516741]
[1768809996206,0.02411775,92796.0,92781.0,0.010783]
[1768809996401,0.09704,92797.0,92781.0,0.010783]
[1768809997002,0.09704,92797.0,92780.0,0.14835845]
[1768809997907,0.010782,92796.0,92780.0,0.14516741]
[1768809999410,0.010782,92796.0,92780.0,0.1499283]
[1768809999906,0.09704,92797.0,92781.0,0.00476089]
[1768810000097,0.02413318,92796.0,92781.0,0.00476089]
[1768810000298,0.02413318,92795.0,92781.0,0.00476089]
[1768810000611,0.09704,92797.0,92781.0,0.00476089]
[1768810000905,0.02414053,92796.0,92781.0,0.00476089]
[1768810001104,0.02414053,92795.0,92781.0,0.00476089]
[1768810001406,0.09704,92797.0,92781.0,0.00476089]
[1768810001601,0.02414933,92796.0,92781.0,0.00476089]
[1768810001801,0.02414933,92795.0,92781.0,0.00476089]
[1768810002002,0.09704,92797.0,92781.0,0.00476089]
[1768810002203,0.02414933,92796.0,92781.0,0.00476089]
[1768810002401,0.02414933,92795.0,92781.0,0.00476089]
[1768810002608,0.09704,92797.0,92781.0,0.00476089]
[1768810002806,0.02415768,92796.0,92781.0,0.00476089]
[1768810003007,0.02415768,92795.0,92781.0,0.00476089]
[1768810003309,0.02416361,92794.0,92781.0,0.00476089]
[1768810003507,0.09704,92797.0,92780.0,0.14516741]
[1768810003807,0.02416361,92796.0,92780.0,0.14516741]
[1768810004007,0.02416361,92795.0,92780.0,0.14516741]
[1768810004206,0.02416361,92794.0,92780.0,0.14516741]
[1768810004405,0.02416361,92793.0,92780.0,0.14516741]
[1768810004607,0.09704,92797.0,92780.0,0.14516741]
[1768810004806,0.02417075,92796.0,92780.0,0.14516741]
[1768810005004,0.02417075,92795.0,92780.0,0.14516741]
[1768810005208,0.02417075,92794.0,92780.0,0.14516741]
[1768810005507,0.02417075,92793.0,92780.0,0.14516741]
[1768810005807,0.10830967,92797.0,92780.0,0.14516741]
[1768810006007,0.03544397,92796.0,92780.0,0.14516741]
[1768810006206,0.0241743,92795.0,92780.0,0.14516741]
[1768810006408,0.0241743,92794.0,92780.0,0.14516741]
[1768810006607,0.0241743,92793.0,92780.0,0.14516741]
[1768810006807,0.010782,92795.0,92780.0,0.14516741]
[1768810007011,0.02417524,92794.0,92777.0,0.05711999]
[1768810007199,0.02417524,92793.0,92777.0,0.05711999]
[1768810007507,0.02417561,92792.0,92777.0,0.05711999]
[1768810007704,0.010782,92795.0,92777.0,0.05711999]
[1768810007905,0.02417561,92794.0,92777.0,0.05711999]
[1768810008106,0.02417561,92793.0,92777.0,0.05711999]
[1768810008303,0.02417561,92792.0,92773.0,0.0065529]
[1768810008504,0.02205267,92784.0,92765.0,0.0069018]
[1768810008708,0.010784,92781.0,92766.0,0.09704]
[1768810009507,0.01126967,92781.0,92761.0,0.05619709]
[1768810009811,0.01126967,92780.0,92762.0,0.09704]
[1768810010003,0.01126967,92780.0,92761.0,0.05619709]
[1768810010203,0.01126967,92780.0,92763.0,0.010786]
[1768810010404,0.0114314,92783.0,92764.0,0.00960763]
[1768810010598,0.0114314,92783.0,92765.0,0.00723602]
[1768810014212,0.0114314,92783.0,92766.0,0.010785]
[1768810014714,0.00016173,92783.0,92766.0,0.01932786]
[1768810015813,0.00016173,92783.0,92769.0,0.010785]
[1768810016011,0.00016173,92783.0,92772.0,0.010784]
[1768810017313,0.01237576,92798.0,92778.0,0.05900046]
[1768810017511,0.12122968,92797.0,92780.0,0.00911514]
[1768810017711,0.02418968,92796.0,92780.0,0.00911514]
[1768810018015,0.02418968,92795.0,92780.0,0.00911514]
[1768810018215,0.02418968,92794.0,92780.0,0.00911514]
[1768810018416,0.02418968,92793.0,92781.0,0.010783]
[1768810018713,0.09704,92797.0,92781.0,0.010783]
[1768810018913,0.02418781,92796.0,92781.0,0.010783]
[1768810019113,0.02418781,92795.0,92781.0,0.010783]
[1768810019313,0.02418781,92794.0,92781.0,0.010783]
[1768810019513,0.02418781,92793.0,92781.0,0.010783]
[1768810019714,0.09704,92797.0,92781.0,0.010783]
[1768810019910,0.02418702,92796.0,92781.0,0.010783]
[1768810020104,0.02418702,92795.0,92781.0,0.010783]
[1768810020304,0.02418702,92795.0,92772.0,0.09704]
[1768810020305,0.09704,92800.0,92786.0,0.00972473]
[1768810021813,0.09704,92800.0,92787.0,0.010783]
[1768810023712,0.10941576,92805.0,92790.0,0.010782]
[1768810024117,0.01237576,92804.0,92790.0,0.010782]
[1768810025313,0.06580964,92804.0,92788.0,0.00016173]
[1768810026920,0.01237576,92803.0,92788.0,0.00016173]
[1768810027420,0.01237576,92803.0,92789.0,0.010783]
[1768810029018,0.01237576,92803.0,92788.0,0.00016173]
[1768810029918,0.06580964,92803.0,92788.0,0.00016173]
[1768810030218,0.01237576,92802.0,92788.0,0.00016173]
[1768810030424,0.06580964,92802.0,92788.0,0.00016173]
[1768810030722,0.05343388,92800.0,92788.0,0.00016173]
[1768810031220,0.06580964,92800.0,92788.0,0.00016173]
[1768810031820,0.05343388,92800.0,92788.0,0.00016173]
[1768810032321,0.02424535,92799.0,92788.0,0.00016173]
[1768810032521,0.05343388,92800.0,92788.0,0.00016173]
[1768810032720,0.02424535,92799.0,92788.0,0.00016173]
[1768810033022,0.05343388,92800.0,92788.0,0.00016173]
[1768810033230,0.02424535,92799.0,92788.0,0.00016173]
[1768810033415,0.01237576,92799.0,92788.0,0.00016173]
[1768810037819,0.01112576,92799.0,92788.0,0.00016173]
[1768810038723,0.05343388,92800.0,92788.0,0.01094473]
[1768810038925,0.09704,92805.0,92788.0,0.01094473]
[1768810039225,0.07767607,92804.0,92788.0,0.01094473]
[1768810039522,0.02424219,92803.0,92788.0,0.01094473]
[1768810041324,0.03661795,92803.0,92788.0,0.01094473]
[1768810041526,0.02424219,92802.0,92788.0,0.01094473]
[1768810044813,0.02424219,92802.0,92790.0,0.010782]
[1768810046020,0.02424219,92802.0,92794.0,0.010782]
[1768810046218,0.09704,92812.0,92792.0,0.06857794]
[1768810046419,0.02426079,92811.0,92795.0,0.01565391]
[1768810046623,0.02426079,92810.0,92796.0,0.01565391]
[1768810046922,0.02426079,92809.0,92796.0,0.01565391]
[1768810047113,0.09704,92819.0,92802.0,0.010781]
[1768810047315,0.010779,92818.0,92798.0,0.010781]
[1768810047520,0.01078,92815.0,92795.0,0.010782]
[1768810048130,0.01078,92815.0,92798.0,0.010782]
[1768810048320,0.01597014,92814.0,92798.0,0.010782]
[1768810053731,0.09704,92819.0,92807.0,0.01078]
[1768810054430,0.01816573,92827.0,92810.0,0.01078]
[1768810054633,0.05498901,92829.0,92813.0,0.01078]
[1768810056034,0.00236996,92829.0,92813.0,0.01078]
[1768810059341,0.0206017,92829.0,92809.0,0.01094164]
[1768810061039,0.07153103,92822.0,92809.0,0.00016164]
[1768810061239,0.01823174,92821.0,92809.0,0.00016164]
[1768810061544,0.01823174,92818.0,92806.0,0.09704]
[1768810062339,0.010779,92817.0,92806.0,0.09704]
[1768810062643,0.01823174,92814.0,92799.0,0.09704]
[1768810063143,0.01823174,92814.0,92795.0,0.05307902]
[1768810063342,0.010781,92803.0,92785.0,0.01831262]
[1768810063645,0.05329929,92808.0,92786.0,0.09704]
[1768810063646,0.01823174,92805.0,92786.0,0.09704]
[1768810063942,0.05329929,92808.0,92786.0,0.09704]
[1768810063943,0.07153103,92808.0,92787.0,0.01831262]
[1768810064240,0.00016164,92805.0,92787.0,0.01831262]
[1768810064539,0.00016164,92805.0,92788.0,0.010783]
[1768810064741,0.01839338,92805.0,92788.0,0.010783]
[1768810065526,0.01823174,92802.0,92788.0,0.010783]
[1768810066146,0.05329929,92803.0,92788.0,0.010783]
[1768810068237,0.01839338,92805.0,92788.0,0.010783]
[1768810068437,0.01839338,92805.0,92786.0,0.11535262]
[1768810069045,0.01839338,92805.0,92790.0,0.1450548]
[1768810069448,0.01839338,92805.0,92791.0,0.010782]
[1768810071245,0.01839338,92805.0,92794.0,0.010782]
[1768810072645,0.01839338,92805.0,92786.0,0.01831262]
[1768810072951,0.01839338,92805.0,92786.0,0.07618308]
[1768810073251,0.01839338,92805.0,92793.0,0.010782]
[1768810075454,0.01839338,92805.0,92791.0,0.010782]
[1768810075646,0.00016164,92805.0,92791.0,0.010782]
[1768810080159,0.00016164,92805.0,92790.0,0.1450548]
[1768810082460,0.00016164,92805.0,92791.0,0.010782]
[1768810083763,0.00016164,92805.0,92790.0,0.1450548]
[1768810088460,0.00016164,92805.0,92790.0,0.010782]
[1768810088662,0.00016164,92805.0,92790.0,0.1558368]
[1768810089252,0.00016164,92805.0,92790.0,0.17433986]
[1768810092363,0.00016164,92805.0,92790.0,0.16355786]
[1768810094067,0.00016164,92805.0,92790.0,0.17433986]
[1768810094573,0.00016164,92805.0,92791.0,0.01850306]
[1768810095261,0.00016164,92805.0,92792.0,0.010782]
[1768810095563,0.010779,92819.0,92800.0,0.01850306]
[1768810095868,0.12110391,92818.0,92801.0,0.01850306]
[1768810096162,0.02406391,92817.0,92801.0,0.01850306]
[1768810096362,0.02406391,92816.0,92801.0,0.01850306]
[1768810096666,0.03484391,92815.0,92801.0,0.01850306]
[1768810096863,0.02406391,92814.0,92800.0,0.20292526]
[1768810098866,0.02406391,92814.0,92801.0,0.01850306]
[1768810099066,0.02406391,92813.0,92802.0,0.01850306]
[1768810099372,0.02406391,92812.0,92802.0,0.01850306]
[1768810099666,0.02406391,92811.0,92802.0,0.01850306]
[1768810099868,0.02406391,92810.0,92802.0,0.01850306]
[1768810100059,0.02406391,92809.0,92802.0,0.01850306]
[1768810100255,0.02406391,92808.0,92802.0,0.01850306]
[1768810100468,0.09704,92818.0,92802.0,0.01850306]
[1768810100668,0.0240626,92817.0,92801.0,0.05787046]
[1768810100870,0.0240626,92816.0,92801.0,0.07637352]
[1768810101170,0.1211026,92815.0,92803.0,0.01850306]
[1768810101371,0.0240626,92814.0,92803.0,0.01850306]
[1768810101673,0.0240626,92813.0,92803.0,0.01850306]
[1768810101866,0.0240626,92812.0,92803.0,0.01850306]
[1768810102171,0.0240626,92811.0,92803.0,0.01850306]
[1768810102368,0.0240626,92810.0,92803.0,0.01850306]
[1768810102570,0.09704,92815.0,92803.0,0.01850306]
[1768810102773,0.02406072,92814.0,92803.0,0.01850306]
[1768810102966,0.02406072,92813.0,92803.0,0.01850306]
[1768810103166,0.02406072,92812.0,92803.0,0.01850306]
[1768810103372,0.02406072,92811.0,92803.0,0.01850306]
[1768810103674,0.02406072,92810.0,92803.0,0.01850306]
[1768810103872,0.09704,92815.0,92803.0,0.01850306]
[1768810104075,0.0240593,92814.0,92803.0,0.01850306]
[1768810104262,0.0240593,92813.0,92803.0,0.01850306]
[1768810104462,0.0240593,92812.0,92803.0,0.01850306]
[1768810104758,0.0240593,92811.0,92803.0,0.01850306]
[1768810104959,0.0240593,92810.0,92803.0,0.01850306]
[1768810105161,0.09704,92815.0,92801.0,0.010781]
[1768810105373,0.02405728,92814.0,92801.0,0.010781]
[1768810105572,0.02405728,92813.0,92800.0,0.1450548]
[1768810105775,0.02405728,92812.0,92800.0,0.1450548]
[1768810106067,0.02405728,92811.0,92800.0,0.1558358]
[1768810106275,0.02405728,92810.0,92800.0,0.17731961]
[1768810106461,0.09704,92815.0,92800.0,0.17731961]
[1768810106760,0.02405658,92814.0,92800.0,0.17731961]
[1768810106956,0.02405658,92813.0,92800.0,0.17731961]
[1768810107260,0.02405658,92812.0,92800.0,0.17731961]
[1768810107460,0.09704,92828.0,92812.0,0.03226381]
[1768810107768,0.09704,92828.0,92817.0,0.07737624]
[1768810107967,0.09704,92828.0,92818.0,0.1450548]
[1768810108364,0.09704,92828.0,92817.0,0.07737624]
[1768810110279,0.09704,92828.0,92817.0,0.05589243]
[1768810111067,0.09704,92828.0,92818.0,0.1450548]
[1768810115272,0.09704,92828.0,92818.0,0.17731761]
[1768810116873,0.097,92836.0,92821.0,0.03226281]
[1768810117072,0.097,92836.0,92821.0,0.02148381]
[1768810117372,0.097,92836.0,92820.0,0.1450548]
[1768810117778,0.010777,92835.0,92820.0,0.1450548]
[1768810117972,0.02351222,92835.0,92820.0,0.1450548]
[1768810118166,0.010778,92833.0,92820.0,0.1450548]
[1768810119478,0.02350717,92832.0,92820.0,0.1450548]
[1768810119674,0.02350718,92831.0,92820.0,0.1450548]
[1768810119876,0.010778,92833.0,92820.0,0.1450548]
[1768810120069,0.02350718,92832.0,92820.0,0.1450548]
[1768810120268,0.010778,92833.0,92820.0,0.1450548]
[1768810120477,0.02350581,92832.0,92820.0,0.1450548]
[1768810120776,0.010778,92833.0,92820.0,0.1450548]
[1768810120978,0.02350581,92832.0,92820.0,0.1450548]
[1768810121175,0.12051222,92836.0,92820.0,0.1450548]
[1768810121472,0.02350488,92835.0,92820.0,0.1450548]
[1768810121673,0.02350488,92834.0,92820.0,0.1450548]
[1768810121874,0.02350488,92833.0,92817.0,0.08014589]
[1768810122065,0.02350488,92832.0,92820.0,0.1450548]
[1768810122269,0.02351222,92835.0,92820.0,0.1450548]
[1768810122468,0.010777,92833.0,92820.0,0.1450548]
[1768810122661,0.02350439,92832.0,92820.0,0.1450548]
[1768810122866,0.010777,92833.0,92820.0,0.1450548]
[1768810123078,0.02350439,92832.0,92820.0,0.1450548]
[1768810123279,0.010777,92833.0,92820.0,0.1450548]
[1768810123485,0.02350438,92832.0,92820.0,0.1450548]
[1768810123780,0.010777,92833.0,92820.0,0.1450548]
[1768810123980,0.02350437,92832.0,92820.0,0.1450548]
[1768810124279,0.010777,92833.0,92820.0,0.1450548]
[1768810124578,0.010778,92831.0,92820.0,0.1450548]
[1768810127381,0.03428922,92835.0,92820.0,0.1450548]
[1768810127680,0.02350837,92834.0,92820.0,0.1450548]
[1768810127878,0.02350837,92833.0,92820.0,0.1450548]
[1768810128180,0.02350837,92832.0,92820.0,0.1450548]
[1768810128381,0.02350837,92831.0,92820.0,0.1450548]
[1768810128682,0.010777,92833.0,92820.0,0.1237048]
[1768810128880,0.02351029,92832.0,92820.0,0.1237048]
[1768810129084,0.02351029,92831.0,92820.0,0.1237048]
[1768810129281,0.010777,92833.0,92820.0,0.0785548]
[1768810129579,0.0235127,92832.0,92820.0,0.0785548]
[1768810129777,0.0235127,92831.0,92820.0,0.0785548]
[1768810129979,0.0235127,92830.0,92820.0,0.0785548]
[1768810130974,0.0235127,92830.0,92817.0,0.05589243]
[1768810133380,0.0235127,92829.0,92817.0,0.05589243]
[1768810133580,0.010778,92832.0,92817.0,0.05589243]
[1768810133880,0.02352436,92831.0,92817.0,0.05589243]
[1768810134080,0.02352436,92830.0,92817.0,0.05589243]
[1768810134382,0.02352436,92829.0,92817.0,0.08576875]
[1768810134678,0.010778,92832.0,92817.0,0.08576875]
[1768810134879,0.02352808,92831.0,92817.0,0.08576875]
[1768810135074,0.02352808,92830.0,92817.0,0.08576875]
[1768810135377,0.02352808,92829.0,92817.0,0.08576875]
[1768810135573,0.010778,92832.0,92817.0,0.08576875]
[1768810135778,0.02353289,92831.0,92817.0,0.08576875]
[1768810135978,0.02353289,92830.0,92817.0,0.08576875]
[1768810136180,0.02353289,92829.0,92817.0,0.08576875]
[1768810136380,0.02353289,92828.0,92817.0,0.08576875]
[1768810136578,0.010778,92832.0,92817.0,0.08576875]
[1768810136877,0.010778,92830.0,92817.0,0.08576875]
[1768810137079,0.010778,92828.0,92817.0,0.08576875]
[1768810137281,0.02353934,92827.0,92817.0,0.08576875]
[1768810137677,0.02353934,92827.0,92813.0,0.00016164]
[1768810137678,0.010779,92821.0,92813.0,0.00016164]
[1768810137883,0.010779,92824.0,92813.0,0.00016164]
[1768810138280,0.05694844,92829.0,92813.0,0.00016164]
[1768810138581,0.11042255,92828.0,92813.0,0.00016164]